Cogmind - Beta 11.1 @@@ ROGUE MODE // 2022.09.17 @ 16:34:56 Player: goblin Result: Destroyed by Y-45 Defender with Heavy Assault Rifle Performance ------------- Evolutions (1) 500 Regions Visited (3) 600 Robots Destroyed (1) 5 Value Destroyed (45) 45 Prototype IDs (3) 60 Alien Tech Used (0) 0 Bonus (200) 200 TOTAL SCORE: 1410 Bonus ------- Pacifist 200 Cogmind --------- Core Integrity 0/400 Matter 300/300 Energy 100/100 System Corruption 0% Temperature Cool (9) Movement Core (50) Location -9/Materials Parts ------- > --- POWER (1) -------- (None) > --- PROPULSION (3) --- (None) > --- UTILITY (3) ------ Targeting Computer > --- WEAPON (2) ------- (None) > --- INVENTORY (5) ---- Hardlight Generator Grenade Launcher Datajack Peak State ------------ > --- POWER ------------ Light Ion Engine > --- PROPULSION ------- Flight Unit Flight Unit > --- UTILITY ---------- Terrain Scanner Targeting Computer > --- WEAPON ----------- Slug Cannon > --- INVENTORY -------- Small Storage Unit Assault Rifle Grenade Launcher [Rating: 9] Favorites ----------- Power Light Ion Engine Engine Light Ion Engine Propulsion Flight Unit Leg Aluminum Leg Flight Unit Flight Unit Utility Targeting Computer Device Terrain Scanner Storage Small Storage Unit Processor Targeting Computer Weapon Assault Rifle Ballistic Gun Assault Rifle Ballistic Cannon Slug Cannon Build | -11 -10 -10 -9 ------- Run | Scr Mat Min Mat Slots Evolved 2 | . . . 2 Power . | . . . . Propulsion 1 | . . . 1 Utility 1 | . . . 1 Weapon . | . . . . Parts Attached 16 | 5 5 2 4 Power 1 | 1 . . . Engine 1 | 1 . . . Core . | . . . . Reactor . | . . . . Propulsion 4 | 2 2 . . Treads . | . . . . Leg 2 | 2 . . . Wheel . | . . . . Hover . | . . . . Flight 2 | . 2 . . Utility 8 | 1 3 . 4 Device 5 | . 1 . 4 Storage 2 | 1 1 . . Processor 1 | . 1 . . Hackware . | . . . . Protection . | . . . . Artifact . | . . . . Weapon 3 | 1 . 2 . Energy Gun . | . . . . Energy Cannon . | . . . . Ballistic Gun 2 | 1 . 1 . Ballistic Cannon 1 | . . 1 . Launcher . | . . . . Special Weapon . | . . . . Impact Weapon . | . . . . Slashing Weapon . | . . . . Piercing Weapon . | . . . . Special Melee Weapon . | . . . . Unidentified Prototypes . | . . . . Parts Lost 6 | . . . 6 Power 1 | . . . 1 Propulsion 2 | . . . 2 Utility 2 | . . . 2 Weapon 1 | . . . 1 Highest Loss Streak 5 | . . . 5 To Critical Strikes . | . . . . Average Slot Usage (%) 73 | . 71 85 66 Engine 12 | . 14 14 9 Leg 4 | . 14 . . Flight 18 | . 13 28 15 Device 12 | . 2 14 20 Storage 2 | . 7 . . Processor 10 | . 5 14 11 Ballistic Gun 12 | . 14 14 9 Naked Turns . | . . . . Heaviest Build 10 | 10 10 6 8 Greatest Support 20 | 20 20 8 8 Greatest Overweight (x) 1 | . . . 1 Average Overweight (x) . | . . . . Largest Inventory Capacity 8 | 8 8 5 5 Average Capacity 5 | 6 6 5 5 Most Carried 5 | 2 5 5 5 Average Carried 2 | . 1 3 2 Final Capacity 8 | 8 5 5 5 Final Carried 5 | 1 2 5 3 Class Distribution -------------------- 100% | Mutant Dominant Class ---------------- Mutant | -10/Materials Mutant | -10/Mines Mutant | -9/Materials Resources | -11 -10 -10 -9 ----------- Run | Scr Mat Min Mat Matter Collected 363 | 155 . 150 58 Remotely . | . . . . Salvage Created 53 | . . . 53 Parts 5 | . . . 5 Haulers Intercepted . | . . . . Recyclers Shooed . | . . . . Parts Field Recycled . | . . . . Retrieved Matter . | . . . . Parts Self-Destructed . | . . . . Prevented . | . . . . Kills | -11 -10 -10 -9 ------- Run | Scr Mat Min Mat Combat Hostiles Destroyed 1 | . . . 1 Guns 1 | . . . 1 Classes Destroyed 1 | . . . 1 Sentry 1 | . . . 1 Best Kill Streak 1 | . . . 1 Combat Bots Only 1 | . . . 1 Max Kills in Single Turn 1 | . . . 1 Gunslinging . | . . . . Exploded . | . . . . Melee . | . . . . Uniques/NPCs Destroyed . | . . . . Combat | -11 -10 -10 -9 -------- Run | Scr Mat Min Mat Damage Taken 716 | . . 12 704 Core 407 | . . . 407 Absorbed by Shields . | . . . . Core Remaining (%) 100 | 100 . 100 . Volleys Fired 2 | . . . 2 Largest 1 | . . . 1 Hottest 20 | . . . 20 Shots Fired 2 | . . . 2 Gun 2 | . . . 2 Cannon . | . . . . Launcher . | . . . . Special . | . . . . Kinetic 2 | . . . 2 Thermal . | . . . . Explosive . | . . . . Electromagnetic . | . . . . Robot Hit Streak 2 | . . . 2 Robot Miss Streak . | . . . . Penetration Max . | . . . . Secondary Targets . | . . . . Shots Hit Robots 2 | . . . 2 Core Hits 2 | . . . 2 Critical Kills . | . . . . Critical Parts Destroyed . | . . . . Critical Strikes . | . . . . Melee Attacks . | . . . . Impact . | . . . . Slashing . | . . . . Piercing . | . . . . Sneak Attacks . | . . . . Combat Hostiles . | . . . . Follow-up Attacks . | . . . . Damage Inflicted 25 | 1 . . 24 Guns 24 | . . . 24 Cannons . | . . . . Explosions . | . . . . Melee . | . . . . Ramming 1 | 1 . . . Kinetic 24 | . . . 24 Thermal . | . . . . Explosive . | . . . . Electromagnetic . | . . . . Impact . | . . . . Slashing . | . . . . Piercing . | . . . . Highest Corruption . | . . . . Average Corruption . | . . . . Corruption Purged . | . . . . Corruption Blocked . | . . . . Overload Shots . | . . . . Overflow Damage . | . . . . Projectiles . | . . . . Explosions . | . . . . Melee . | . . . . Knockbacks . | . . . . Impact . | . . . . Kinetic . | . . . . Secondary . | . . . . Self-Inflicted Damage . | . . . . Shots . | . . . . Rammed . | . . . . Targets Rammed 1 | 1 . . . Kicked 1 | 1 . . . Crushed . | . . . . Highest Temperature . | . . . . Average Temperature . | . . . . Received Heat Transfer 231 | . . 6 225 Siege Activations . | . . . . Robots Corrupted . | . . . . Combat Hostiles . | . . . . Parts Fried . | . . . . Impact Corruptions . | . . . . Robots Melted . | . . . . Combat Hostiles . | . . . . Parts Melted . | . . . . Heat Transferred . | . . . . Parts Sabotaged . | . . . . Parts Stolen . | . . . . Parts Stripped . | . . . . Power Chain Reactions . | . . . . Missiles Intercepted . | . . . . Alert | -11 -10 -10 -9 ------- Run | Scr Mat Min Mat Peak Influence 88 | . 13 19 88 Initial 7 | . . 4 7 Average 20 | . 6 10 49 Maximum Alert Level . | . . . . Low Security (%) 100 | 100 100 100 100 Level 1 . | . . . . Level 2 . | . . . . Level 3 . | . . . . Level 4 . | . . . . Level 5 . | . . . . High Security . | . . . . Max Security . | . . . . Squads Dispatched 5 | . 2 1 2 Investigation 4 | . 2 1 1 Extermination . | . . . . Reinforcement 1 | . . . 1 Assault . | . . . . Garrison . | . . . . Intercept . | . . . . Searches Triggered . | . . . . Construction Impeded . | . . . . Haulers Reinforced . | . . . . Active Scanning Responses . | . . . . Cargo Convoy Interrupts . | . . . . Stealth | -11 -10 -10 -9 --------- Run | Scr Mat Min Mat Distress Signals . | . . . . Communications Jammed . | . . . . Distress Signals . | . . . . Times Spotted 8 | . . 3 5 Peak Tracking Total 3 | . . 2 3 Tactical Retreats . | . . . . Traps | -11 -10 -10 -9 ------- Run | Scr Mat Min Mat Traps Triggered . | . . . . Indirectly . | . . . . Trap Hack Attempts . | . . . . Triggered . | . . . . Disarmed . | . . . . Reprogrammed . | . . . . Reused 1 | . . . 1 Traps Extracted . | . . . . Installed 2 | . . . 2 Triggered 1 | . . . 1 Most Traps Carried 2 | . . 2 2 Machines | -11 -10 -10 -9 ---------- Run | Scr Mat Min Mat Machines Disabled . | . . . . Max in Single Turn . | . . . . Machines Sabotaged . | . . . . Garrisons Compromised . | . . . . Overloaded Fab Kills . | . . . . Hacking | -11 -10 -10 -9 --------- Run | Scr Mat Min Mat Machines Accessed 7 | . 4 1 2 Terminals 4 | . 3 . 1 Fabricators . | . . . . Repair Stations . | . . . . Recycling Units 1 | . 1 . . Scanalyzers 1 | . . . 1 Garrison Access . | . . . . Total Hacks 18 | . 14 1 3 Successful 14 | . 11 1 2 Failed 4 | . 3 . 1 Catastrophic . | . . . . Database Lockouts . | . . . . Manual . | . . . . Terminals 12 | . 10 . 2 Fabricators . | . . . . Repair Stations . | . . . . Recycling Units 4 | . 4 . . Scanalyzers 1 | . . . 1 Garrison Access . | . . . . Terminal Hacks 11 | . 8 1 2 Record 3 | . 3 . . Prototype ID Bank 2 | . 2 . . Open Door 1 | . . 1 . Alert Level 3 | . 3 . . Unreport Threat 1 | . . . 1 Maintenance Status 1 | . . . 1 Fabricator Hacks . | . . . . Repair Station Hacks . | . . . . Recycling Unit Hacks 3 | . 3 . . Recycle Component 1 | . 1 . . Process 2 | . 2 . . Scanalyzer . | . . . . Garrison Access Hacks . | . . . . Unauthorized Hacks . | . . . . Terminals . | . . . . Fabricators . | . . . . Repair Stations . | . . . . Recycling Units . | . . . . Scanalyzers . | . . . . Garrison Access . | . . . . Data Cores Recovered . | . . . . Used . | . . . . Hacking Detections 5 | . 4 . 1 Full Trace Events 2 | . 2 . . Feedback Events . | . . . . Feedback Blocked . | . . . . Robot Schematics Acquired . | . . . . Robots Built . | . . . . Authchips . | . . . . Time . | . . . . Total Robot Build Rating . | . . . . Part Schematics Acquired . | . . . . Parts Built . | . . . . Authchips . | . . . . Time . | . . . . Total Part Build Rating . | . . . . Parts Repaired . | . . . . Time . | . . . . Parts Recycled 1 | . 1 . . Recycled Matter 42 | . 42 . . Retrieved Matter . | . . . . Retrieved Components . | . . . . Parts Scanalyzed . | . . . . Part Schematics Acquired . | . . . . Parts Damaged . | . . . . Bothacking | -11 -10 -10 -9 ------------ Run | Scr Mat Min Mat Used RIF Installer . | . . . . Robots Hacked . | . . . . Non-combat . | . . . . Combat . | . . . . Robot Hacks Applied . | . . . . Relay Couplers Released . | . . . . Fabnet Peak Effective % . | . . . . Robots Rewired . | . . . . Allies Hacked . | . . . . Hacks Repelled . | . . . . Allies | -11 -10 -10 -9 -------- Run | Scr Mat Min Mat Total Allies . | . . . . Largest Group . | . . . . Highest-Rated Group . | . . . . Highest-Rated Ally . | . . . . Total Orders . | . . . . Ally Attacks . | . . . . Total Damage . | . . . . Kills . | . . . . Allies Corrupted . | . . . . Allies Melted . | . . . . Intel | -11 -10 -10 -9 ------- Run | Scr Mat Min Mat Robot Analysis Total . | . . . . Derelict Logs Recovered 1 | . . 1 . Drone Launches . | . . . . Drone Recoveries . | . . . . Exploration | -11 -10 -10 -9 ------------- Run | Scr Mat Min Mat Turns Passed 638 | 60 196 179 203 Spaces Moved 935 | 46 276 429 184 Core 10 | 10 . . . Treads . | . . . . Legs 115 | 36 79 . . Wheels . | . . . . Hover . | . . . . Flight 810 | . 197 429 184 Fastest Speed 37 | 50 37 37 37 Average Speed 47 | 104 60 37 40 Slowest Speed 120 | 120 120 37 120 Overloaded Moves . | . . . . Propulsion Burnouts . | . . . . Robots Hopped 10 | . 3 6 1 Cave-ins Triggered . | . . . . Exploration Rate (%) 34 | 3 35 86 14 Regions Visited 3 Branch Regions 1 Pre-discovered Areas . | . . . . Known Exits Taken . | . . . . Unknown Exits Taken 3 | 1 1 1 . Scrap Searched 1 | . . 1 . Spaces Dug . | . . . . Terrain Destroyed . | . . . . Melee . | . . . . Projectile . | . . . . AOE . | . . . . Terrain Rammed . | . . . . Walls Destroyed . | . . . . Machines Disabled . | . . . . Actions | -11 -10 -10 -9 --------- Run | Scr Mat Min Mat Total 1120 | 57 305 445 313 Wait 134 | . 10 10 114 Move 912 | 45 269 416 182 Hop 10 | . 3 6 1 Pick Up 23 | 6 9 6 2 Fast Attach . | . . . . Attach 16 | 5 5 2 4 Detach 8 | . 3 2 3 Swap . | . . . . Drop 12 | . 6 3 3 Fire 2 | . . . 2 Melee . | . . . . Ram . | . . . . Kick 1 | 1 . . . Crush . | . . . . Escape Stasis . | . . . . Rewire . | . . . . Trap 2 | . . . 2 Miscellaneous . | . . . . Route ------- -11/Scrapyard -10/Materials -10/Mines (discovered 2 exits: *Mat x2) -9/Materials History --------- Turn | Location | Event 8 | -11/Scrapyard | Discovered new exit (range 15) 61 | -11/Scrapyard | Entered Materials 235 | -10/Materials | Discovered new exit (range 14) 257 | -10/Materials | Entered Mines 258 | -10/Mines | Assembled infested the area 277 | -10/Mines | YI-UF0 nonchalantly dropped a Grenade Launcher on the ground 283 | -10/Mines | Discovered new exit (range 9) 300 | -10/Mines | Build established: Mutant 315 | -10/Mines | Discovered new exit (range 4) 331 | -10/Mines | A weapon hastily lodged in a ceiling crevice suddenly fell to the ground 343 | -10/Mines | Met a Derelict shopkeep closing up shop 394 | -10/Mines | Found a hidden stash of uninstalled traps 405 | -10/Mines | Learned Materials security intel 436 | -10/Mines | Entered Materials 436 | -9/Materials | Evolved 2 slots: Propulsion x1, Utility x1 607 | -9/Materials | Core integrity fell below 50% 631 | -9/Materials | Core integrity fell below 20% 639 | -9/Materials | Destroyed by Y-45 Defender with Heavy Assault Rifle Last Messages --------------- U-05 Engineer lays Concrete. R-06 Scavenger system corruption misinterpreted. R-06 Scavenger triggered Shock Trap. The floor emits a surge of raw power. R-06 Scavenger system terminally corrupted. Lgt. Ion Engine destroyed. U-05 Engineer lays Concrete. K-01 Serf collects debris. U-05 Engineer lays Concrete. K-01 Serf collects debris. Assault Rifle destroyed. K-01 Serf collects debris. U-05 Engineer destroyed. K-01 Serf collects debris. Cooling System destroyed. K-01 Serf collects debris. U-05 Engineer lays Concrete. Terrain Scanner destroyed. Critical hit (Burn: +37). K-01 Serf collects debris. Map ----- +----------------------------------------------------+ | ???????????????????????????????????????## | | ????????????????????????????????????????########## | | ????????????????????????????????????#??????#! | | ???????????????????????????????????????????# "T" | | ???????????????????????????????????????????# | | ?????????????????????????????????????????#?# | | ??????????????????????????????????????#????# | | | ???????????????????????????????????????????# ! | | ???????????????????????????????????????????####### | | ?????????????????????????????????????#?????# = | | ???????????????????????????????????????????# " =! | | ?????????????????????"??????????#??????????# " ^ | | ???????????????????????????????????????????# *[ | | ?????????????????????????????????#?????????# | | ?????????????????? ????? ?####???????????#?# | | ?????????????????????###### ########???????####### | | ?????????????????????# # #?????? ??????? | | ??????????????????? ?# # """#?????????????? | | ???????????????#??? ?# "" # [ """#??S? ?????"?? | | ?????????????????????#=! """# """# ??? ??????? ? | | ?????????????????????#=! S"# ] #?????? ??????? | | ???????????????#?#???# # #????? ????? ?# | | ??????????????????# #####/######+#############+### | | ??????????????????# u uuu %w | | ??????????????????# Yu! a ! | | ??????????????????# @kk ^^ | | ??????????????????# u #######+################# | | ??????????????????# ???# #????????????## | | ?????????????#??#?# ???# #?????????#???? | | ??????????????????# ???# #???????????? | | ????????????????? + ???# // #???????????# " | | ??????????????? ! # ???# /// ##??????????# " | | ??????????????###?# #??# /// #???????????# " | | ??????????????????r ??#########???????????# | | ??????????????? ? ?#?????????????????????# | | ???????????????? ?#?? ??????????????#???? | | ??????????????? ?????????????????????????? | | ???????????????? ?????????????????????????? | | ?????????????????? ?? ???????????????????????????? | | ?????????????????????????????????????????????????? | | ?????????????????????????????????????????????????? | | ?????????????????????????????????????????????????? | | ?????????????????????????????????????#???????????? | | ?????????????????????????????????????????????????? | | ?????????????????????????????????????????????????? | | ?????????????????????????????????????????????????? | | ?????????????????????????????????????????????????? | | ?????????????????????????????????????????????????? | | ?????????????????????????????????????????????????? | | ?????????????????????????????????????????????????? | +----------------------------------------------------+ Best States ------------- Heat Dissipation 50 Energy Generation 10 Energy Capacity 125 Matter Stores 300 Matter Capacity 300 Sight Range 16 Terrain Scan Range 14 Terrain Scan Density 10 Evasion (%) 62 Targeting Accuracy 5 Item Schematics ----------------- None Robot Schematics ------------------ None Fabricated ------------ Nothing Alien Tech Used ----------------- None Achievements -------------- None Challenges ------------ None Game ------ Seed SapperDefenseSlayer Manual? 0 Play Time 00:22:54 Cumulative 2.4 hours Start 2022.09.17 @ 16:10:49 End 2022.09.17 @ 16:34:56 Sessions 1 Manual Loads 0 Difficulty Rogue Special Mode None Game No. 12 Rogue 12 Adventurer 0 Explorer 0 Win Type - Total 0 Types 0/0/0/0/0/0/0/0/0 Lore% 1 Gallery% 4 Achievement% 4 Wizard Run 0 Options --------- ASCII 0 Keyboard 0 Movement Numpad Keybinds 0 Fullscreen 1 Font 18/SmallcapsGlow Map View 76x50 Tactical HUD 0 Map Filters NONE Filters NONE Steam 1 RUN: 68a03b31-4061-407f-af21-87f297b00ade